bitfinex-derivatives/quotes_BTCF0:USTF0_20250901
["timestamp","ask_amount","ask_price","bid_price","bid_amount"]
[1756693244702,1.58997664,107950.0,107940.0,0.63694921]
[1756693244903,1.58997664,107950.0,107940.0,0.33694921]
[1756693245101,1.58997664,107950.0,107940.0,0.63694921]
[1756693245403,1.58997664,107950.0,107940.0,0.06148]
[1756693245599,0.72241664,107950.0,107940.0,0.39148]
[1756693245800,0.72241664,107950.0,107940.0,1.04774921]
[1756693246003,1.58989664,107950.0,107940.0,1.07774921]
[1756693246398,1.58989664,107950.0,107940.0,0.06148]
[1756693246600,1.58989664,107950.0,107940.0,0.33694921]
[1756693246800,1.58989664,107950.0,107940.0,0.06148]
[1756693247001,1.58989664,107950.0,107940.0,0.33694921]
[1756693247608,2.22616585,107950.0,107940.0,0.02661]
[1756693248508,1.95069664,107950.0,107940.0,0.02661]
[1756693248705,2.22616585,107950.0,107940.0,0.002]
[1756693249205,2.22616585,107950.0,107940.0,0.02661]
[1756693249706,1.95069664,107950.0,107940.0,0.02661]
[1756693251601,2.22616585,107950.0,107940.0,0.002]
[1756693251802,2.12616585,107950.0,107940.0,0.002]
[1756693252006,1.77616585,107950.0,107940.0,0.002]
[1756693252405,1.50069664,107950.0,107940.0,0.002]
[1756693252601,1.77612585,107950.0,107940.0,0.002]
[1756693254006,2.13692585,107950.0,107940.0,0.002]
[1756693254205,1.26948585,107950.0,107940.0,0.002]
[1756693254398,2.13692585,107950.0,107940.0,0.002]
[1756693254604,2.13692498,107950.0,107940.0,0.002]
[1756693255810,1.77612498,107950.0,107940.0,0.002]
[1756693258705,2.12612498,107950.0,107940.0,0.002]
[1756693259206,1.92586851,107950.0,107940.0,0.002]
[1756693259410,2.17586851,107950.0,107940.0,0.002]
[1756693259612,1.92586851,107950.0,107940.0,0.002]
[1756693260206,2.17586851,107950.0,107940.0,0.002]
[1756693260898,2.17586871,107950.0,107940.0,0.002]
[1756693261105,2.45133792,107950.0,107940.0,0.002]
[1756693261304,2.4679191,107950.0,107940.0,0.002]
[1756693261506,2.40159439,107950.0,107940.0,0.002]
[1756693262011,1.53415439,107950.0,107940.0,0.002]
[1756693262211,2.17572953,107950.0,107940.0,0.002]
[1756693262403,1.30840953,107950.0,107940.0,0.002]
[1756693262604,2.17572953,107950.0,107940.0,0.002]
[1756693263114,1.30840953,107950.0,107940.0,0.002]
[1756693263306,2.45119874,107950.0,107940.0,0.002]
[1756693263701,2.17572953,107950.0,107940.0,0.002]
[1756693266416,1.32500989,107950.0,107940.0,0.002]
[1756693266915,2.12600518,107950.0,107940.0,0.002]
[1756693268415,2.40147439,107950.0,107940.0,0.002]
[1756693268914,2.4677991,107950.0,107930.0,0.00463]
[1756693269109,0.91173842,107940.0,107930.0,0.00463]
[1756693269415,1.29315439,107940.0,107930.0,0.00463]
[1756693269614,1.54315439,107940.0,107930.0,0.00463]
[1756693269810,1.60933423,107940.0,107930.0,0.00463]
[1756693270410,2.47661423,107940.0,107930.0,0.00463]
[1756693270616,2.47761423,107940.0,107930.0,0.001]
[1756693270816,2.47761423,107940.0,107930.0,0.002]
[1756693271212,2.47761423,107940.0,107900.0,0.05819]
[1756693271417,0.63626921,107910.0,107900.0,0.05819]
[1756693271615,0.65768518,107910.0,107900.0,0.05819]
[1756693271917,1.52496518,107910.0,107900.0,0.06282]
[1756693272709,0.38221597,107910.0,107900.0,0.31282]
[1756693272916,0.40686,107940.0,107930.0,0.05819]
[1756693273111,1.2741,107940.0,107930.0,0.33365921]
[1756693273314,1.54960921,107940.0,107930.0,0.05819]
[1756693273512,0.02142,107930.0,107910.0,0.05473491]
[1756693273712,0.40686,107920.0,107910.0,0.07865491]
[1756693274118,1.27414,107920.0,107910.0,0.07865491]
[1756693275616,1.27514,107920.0,107910.0,0.07865491]
[1756693276218,1.27714,107920.0,107910.0,0.07965491]
[1756693277017,1.27714,107920.0,107910.0,0.32965491]
[1756693277217,1.55260921,107920.0,107910.0,0.32965491]
[1756693277418,1.55260921,107920.0,107910.0,0.07965491]
[1756693277718,1.55260921,107920.0,107910.0,0.02146491]
[1756693277719,3.51084921,107920.0,107910.0,0.02146491]
[1756693277919,3.51084921,107920.0,107910.0,0.001]
[1756693278320,3.00436921,107920.0,107910.0,0.001]
[1756693278617,3.87156921,107920.0,107910.0,0.001]
[1756693278809,4.48156921,107920.0,107900.0,0.00463]
[1756693279014,0.68132921,107910.0,107900.0,0.00463]
[1756693280320,1.54852921,107910.0,107900.0,0.00463]
[1756693281216,1.66852921,107910.0,107900.0,0.00463]
[1756693281621,1.94399842,107910.0,107900.0,0.00463]
[1756693282021,1.94499842,107910.0,107900.0,0.00563]
[1756693282223,1.63406,107910.0,107900.0,0.00563]
[1756693282420,1.62406,107910.0,107900.0,0.00563]
[1756693282619,1.84499842,107910.0,107900.0,0.00563]
[1756693282829,2.16499842,107910.0,107900.0,0.00563]
[1756693283122,2.14457842,107910.0,107880.0,0.01017437]
[1756693283316,2.14457842,107910.0,107860.0,0.63626921]
[1756693283317,0.66090921,107890.0,107860.0,0.63626921]
[1756693283516,0.66090921,107890.0,107870.0,0.02392]
[1756693283517,1.56286921,107880.0,107870.0,0.02392]
[1756693283711,1.56286921,107880.0,107870.0,0.38392]
[1756693284314,1.36338053,107880.0,107870.0,0.38392]
[1756693284518,0.77164974,107880.0,107870.0,0.38392]
[1756693284721,1.36338053,107880.0,107870.0,0.38392]
[1756693285427,1.63984974,107880.0,107870.0,0.42319]
[1756693285627,1.63984974,107880.0,107870.0,0.42619]
[1756693285828,0.49718053,107880.0,107870.0,0.42619]
[1756693286124,1.02476599,107880.0,107870.0,0.42619]
[1756693286430,1.38556599,107880.0,107870.0,0.42619]
[1756693286630,0.15752599,107880.0,107870.0,0.42619]
[1756693286831,1.00362053,107880.0,107870.0,0.42619]
[1756693287029,1.00362053,107880.0,107870.0,0.70165921]
[1756693287335,0.86824,107880.0,107870.0,0.95165921]
[1756693287525,0.86824,107880.0,107870.0,1.31245921]
[1756693288431,0.86828,107880.0,107870.0,1.31245921]
[1756693288730,0.001,107880.0,107870.0,1.31245921]
[1756693289120,0.86824,107880.0,107870.0,1.31245921]
[1756693289434,0.02214924,107880.0,107870.0,1.31245921]
[1756693289632,0.88942924,107880.0,107870.0,1.31245921]
[1756693289830,0.03476,107900.0,107870.0,1.55365842]
[1756693290029,0.4202,107910.0,107900.0,0.05819]
[1756693290223,0.0594,107900.0,107890.0,0.05819]
[1756693290429,0.0805541,107900.0,107890.0,0.02392]
[1756693290730,0.0805541,107900.0,107890.0,0.05819]
[1756693291125,0.9130341,107900.0,107890.0,0.68365921]
[1756693291330,0.9130341,107900.0,107890.0,1.04445921]
[1756693291533,0.0457941,107900.0,107890.0,1.04445921]
[1756693291730,0.86724,107900.0,107890.0,1.29545921]
[1756693291929,0.02464,107910.0,107900.0,0.05819]
[1756693292230,0.86724,107910.0,107900.0,1.00445921]
[1756693292532,0.90205,107910.0,107900.0,1.00445921]
[1756693292730,1.95824,107920.0,107900.0,1.22018921]
[1756693292926,2.002776,107920.0,107910.0,0.29815921]
[1756693293126,2.870016,107920.0,107910.0,0.65758741]
[1756693293322,2.002776,107920.0,107910.0,1.57792662]
[1756693293526,2.846606,107920.0,107910.0,1.57792662]
[1756693293730,2.846606,107920.0,107910.0,1.30245741]
[1756693293929,2.846606,107920.0,107910.0,1.37143897]
[1756693294130,2.82544,107920.0,107910.0,1.37143897]
[1756693294833,2.82544,107920.0,107910.0,1.0269882]
[1756693295030,2.86025,107920.0,107910.0,1.37143897]
[1756693295228,2.86125,107920.0,107910.0,1.37143897]
[1756693295430,2.82644,107920.0,107910.0,1.37143897]
[1756693295631,2.82944,107920.0,107910.0,1.37243897]
[1756693296037,1.96224,107920.0,107910.0,1.37243897]
[1756693296331,0.87116,107920.0,107910.0,1.37243897]
[1756693297433,0.87016,107920.0,107910.0,1.37243897]
[1756693297633,0.3608,107950.0,107940.0,0.05676]
[1756693297634,0.41898,107950.0,107940.0,0.05676]
[1756693297939,1.30724287,107950.0,107940.0,0.40121077]
[1756693298233,1.30724287,107950.0,107940.0,0.05676]
[1756693298931,0.05818,107940.0,107930.0,0.41756]
[1756693299136,0.05818,107940.0,107910.0,0.3712282]
[1756693299137,0.74975079,107940.0,107920.0,0.39487]
[1756693299334,0.89045,107930.0,107910.0,0.74874897]
[1756693299528,0.05818,107920.0,107910.0,0.7369882]
[1756693299931,0.05818,107920.0,107910.0,0.3761882]
[1756693300937,1.03554988,107920.0,107910.0,0.311]
[1756693301534,0.69109911,107920.0,107910.0,0.33369]
[1756693301744,0.69109911,107920.0,107910.0,0.36776]
[1756693302034,0.33029911,107920.0,107910.0,0.36776]
[1756693302233,1.19729911,107920.0,107910.0,0.33369]
[1756693302441,1.55709911,107920.0,107910.0,0.36676]
[1756693302630,1.56109911,107920.0,107910.0,0.36776]
[1756693303442,1.56109911,107920.0,107910.0,0.33369]
[1756693303643,1.56109911,107920.0,107910.0,0.36776]
[1756693304340,1.56109911,107920.0,107910.0,0.33369]
[1756693304540,1.56109911,107920.0,107910.0,0.36776]
[1756693305644,0.69409911,107920.0,107910.0,0.36776]
[1756693305944,1.56109911,107920.0,107910.0,0.36776]
[1756693306345,1.56109911,107920.0,107910.0,0.33369]
[1756693307446,1.90554988,107920.0,107910.0,0.311]
[1756693307643,1.03854988,107920.0,107910.0,0.311]
[1756693307839,1.56105911,107920.0,107910.0,0.33369]
[1756693308547,1.20025911,107920.0,107910.0,0.36776]
[1756693309042,0.33329911,107920.0,107910.0,0.36776]
[1756693309241,0.95021911,107920.0,107910.0,0.96221077]
[1756693309447,0.95021911,107920.0,107910.0,1.32301077]
[1756693309952,0.87092,107920.0,107910.0,1.32301077]
[1756693310445,0.004,107920.0,107910.0,1.32301077]
[1756693310645,0.87092,107920.0,107910.0,1.32301077]
[1756693311045,0.004,107920.0,107910.0,1.41567517]
[1756693311245,0.004,107920.0,107910.0,1.32301077]
[1756693312741,0.87088,107920.0,107910.0,1.32301077]
[1756693316050,0.004,107920.0,107910.0,1.32301077]
[1756693317245,0.004,107920.0,107910.0,1.41567517]
[1756693318146,0.004,107920.0,107910.0,1.4359108]
[1756693318348,0.004,107920.0,107910.0,1.78036157]
[1756693318650,0.004,107920.0,107910.0,1.4359108]
[1756693318858,0.05818,107940.0,107930.0,0.02269]
[1756693319148,0.91127132,107940.0,107930.0,1.14201077]
[1756693319350,0.94608132,107940.0,107930.0,0.15676]
[1756693319950,0.94908132,107940.0,107930.0,0.43225982]
[1756693320152,1.20508132,107940.0,107930.0,0.12369]
[1756693320354,1.84138114,107940.0,107930.0,0.101]
[1756693320555,1.84138114,107940.0,107930.0,0.001]
[1756693320757,0.33832132,107940.0,107930.0,0.05776]
[1756693320959,1.20204132,107940.0,107930.0,0.33325982]
[1756693321254,1.56384132,107940.0,107930.0,0.001]
[1756693321459,1.83934114,107940.0,107930.0,0.001]
[1756693322056,0.06109,107930.0,107920.0,0.76188616]
[1756693322260,0.08223132,107930.0,107920.0,0.6908]
[1756693322658,0.08223132,107930.0,107920.0,0.7484]
[1756693322865,0.02114132,107930.0,107920.0,1.68723232]
[1756693323059,0.86668,107940.0,107930.0,0.0576]
[1756693323258,0.86668,107940.0,107930.0,1.14281616]
[1756693323259,0.02117002,107940.0,107930.0,1.14281616]
[1756693323458,0.86668,107950.0,107930.0,1.20046336]
[1756693323666,0.02117068,107950.0,107940.0,0.76281616]
[1756693323872,0.02117068,107950.0,107940.0,1.10281616]
[1756693324060,0.05834068,107950.0,107940.0,1.35281616]
[1756693324369,0.02117068,107950.0,107940.0,1.35281616]
[1756693324865,0.02117068,107950.0,107940.0,1.37347502]
[1756693325366,1.95856,107960.0,107940.0,1.46611362]
[1756693325663,1.63290616,107950.0,107940.0,0.36065886]
[1756693325874,1.27248035,107950.0,107920.0,0.72979506]
[1756693326062,0.06109,107930.0,107920.0,1.13339506]
[1756693326262,0.94885035,107930.0,107920.0,1.13339506]
[1756693327362,0.94985035,107930.0,107920.0,1.13639506]
[1756693328170,1.90506651,107930.0,107920.0,0.003]
[1756693328667,1.56065035,107930.0,107920.0,0.003]
[1756693329268,1.56065035,107930.0,107920.0,0.0256]
[1756693329659,1.56065035,107930.0,107920.0,0.003]
[1756693330464,1.56065035,107930.0,107920.0,0.0256]
[1756693330866,1.56065035,107930.0,107920.0,0.003]
[1756693331469,1.56061035,107930.0,107920.0,0.003]
[1756693333070,1.90502651,107930.0,107920.0,0.003]
[1756693333972,1.90502651,107930.0,107910.0,0.02486563]
[1756693334271,1.65502651,107930.0,107910.0,0.02486563]
[1756693334572,0.42189,107920.0,107910.0,0.00463]
[1756693334871,0.44305035,107920.0,107910.0,0.00463]
[1756693335366,0.44305035,107920.0,107910.0,0.32463]
[1756693335570,1.30961035,107920.0,107910.0,0.00463]
[1756693335769,1.30961035,107920.0,107910.0,0.31463]
[1756693335970,1.30961035,107920.0,107910.0,0.03023]
[1756693336270,1.30961035,107920.0,107910.0,0.00763]
[1756693336467,1.31061035,107920.0,107910.0,0.00763]
[1756693336669,1.31061035,107920.0,107910.0,0.00863]
[1756693337172,1.90602651,107920.0,107910.0,0.00663]
[1756693337370,1.90702651,107920.0,107910.0,0.00563]
[1756693338271,1.56261035,107920.0,107910.0,0.00563]
[1756693339177,1.20181035,107920.0,107910.0,0.00563]
[1756693339470,1.31261035,107920.0,107910.0,0.06323]
[1756693339864,1.31261035,107920.0,107910.0,0.00563]
[1756693340064,1.65702651,107920.0,107910.0,0.00563]
[1756693340672,3.93758568,107920.0,107910.0,0.00563]
[1756693340877,0.06109,107900.0,107890.0,0.42751547]
[1756693341082,0.92765,107900.0,107890.0,0.78751547]
[1756693342374,0.92869,107900.0,107890.0,0.78951547]
[1756693342674,0.92869,107900.0,107890.0,0.79051547]
[1756693343374,0.06209,107900.0,107890.0,0.79051547]
[1756693343572,0.06209,107900.0,107890.0,1.13493163]
[1756693343783,0.8676,107900.0,107890.0,1.38493163]
[1756693344479,0.90477,107900.0,107890.0,1.38493163]
[1756693344781,0.8676,107900.0,107890.0,1.38493163]
[1756693344981,0.90477,107900.0,107890.0,1.38493163]
[1756693345279,0.8676,107900.0,107890.0,1.46048992]
[1756693345471,0.90477,107900.0,107890.0,1.46048992]
[1756693346972,0.03817,107900.0,107890.0,1.46048992]
[1756693347173,0.8676,107900.0,107890.0,1.46048992]
[1756693347774,0.001,107900.0,107890.0,1.46048992]
[1756693347977,0.8676,107900.0,107890.0,1.46048992]
[1756693348668,0.90477,107900.0,107890.0,1.46048992]
[1756693349665,0.8676,107900.0,107890.0,1.46048992]
[1756693350064,0.86756,107900.0,107890.0,1.46048992]
[1756693350675,0.001,107900.0,107890.0,1.46048992]
[1756693350871,0.8676,107900.0,107890.0,1.46048992]
[1756693351080,0.001,107900.0,107890.0,1.46048992]
[1756693352166,1.99529,107920.0,107890.0,1.46048992]
[1756693352167,1.95812,107920.0,107910.0,0.02363]
[1756693352379,2.86212,107920.0,107910.0,1.10613616]
[1756693353274,0.905,107920.0,107910.0,1.10613616]
[1756693354381,0.906,107920.0,107910.0,1.10713616]
[1756693355973,0.904,107920.0,107910.0,1.10813616]
[1756693356175,0.905,107920.0,107910.0,1.10813616]
[1756693356883,0.03844,107920.0,107910.0,1.10813616]
[1756693357079,0.90488,107920.0,107910.0,1.10813616]
[1756693357583,0.86744,107920.0,107910.0,1.10813616]
[1756693357776,0.90488,107920.0,107910.0,1.10813616]
[1756693357980,0.92809,107920.0,107910.0,1.03928268]
[1756693358483,0.92809,107920.0,107910.0,0.76372]
[1756693358678,0.92809,107920.0,107910.0,1.03928268]
[1756693360778,0.92809,107920.0,107910.0,0.66199268]
[1756693361279,0.92809,107920.0,107910.0,0.69928268]
[1756693362684,0.92809,107920.0,107910.0,0.30119268]
[1756693362877,0.92809,107920.0,107910.0,0.69928268]
[1756693363073,0.06165,107920.0,107910.0,0.69928268]
[1756693363271,0.92797,107920.0,107910.0,0.69928268]
[1756693365486,0.06165,107920.0,107910.0,0.69928268]
[1756693365784,0.92789,107920.0,107910.0,0.69928268]
[1756693366384,0.94912248,107920.0,107910.0,0.69928268]
[1756693366589,0.94912248,107920.0,107910.0,1.07928268]
[1756693366987,0.08288248,107920.0,107910.0,0.71928268]
[1756693367179,0.08288248,107920.0,107910.0,1.03928268]
[1756693367380,0.04544248,107920.0,107910.0,1.31484536]
[1756693367581,0.02223248,107920.0,107910.0,1.31484536]
[1756693368085,0.001,107920.0,107910.0,1.31484536]
[1756693368275,0.39824,107940.0,107920.0,0.06092]
[1756693368276,0.02321,107930.0,107920.0,0.06092]
[1756693368586,0.88941,107930.0,107920.0,1.03728268]
[1756693369489,0.02321,107930.0,107920.0,1.03728268]
[1756693369787,0.89037,107930.0,107920.0,1.03828268]
[1756693370385,0.89037,107930.0,107920.0,1.03928268]
[1756693372487,0.92781,107930.0,107920.0,0.76372]
[1756693372785,0.92781,107930.0,107920.0,1.03928268]
[1756693374880,0.89037,107930.0,107920.0,1.03928268]
[1756693375086,0.02421,107930.0,107920.0,1.03928268]
[1756693375286,0.001,107930.0,107920.0,1.28928268]
[1756693376286,0.001,107930.0,107920.0,2.24793858]
[1756693376892,0.001,107930.0,107920.0,2.15528268]
[1756693377094,0.001,107930.0,107920.0,2.24793858]
[1756693377992,0.001,107930.0,107920.0,2.15528268]
[1756693378187,0.001,107930.0,107920.0,2.15524268]
[1756693379193,0.001,107930.0,107920.0,1.99789858]
[1756693381390,0.001,107930.0,107920.0,2.52346126]
[1756693381590,0.001,107930.0,107920.0,2.24789858]
[1756693382091,0.001,107930.0,107920.0,2.24773858]
[1756693382296,0.001,107930.0,107920.0,2.26848256]
[1756693382796,0.02366,107960.0,107950.0,0.07875098]
[1756693383096,0.91165,107970.0,107960.0,0.05799]
[1756693383293,0.93288802,107970.0,107960.0,1.03435268]
[1756693383597,0.08004802,107970.0,107960.0,1.03435268]
[1756693383799,0.94576802,107970.0,107960.0,1.03435268]
[1756693383996,0.08004802,107970.0,107960.0,1.03435268]
[1756693384199,0.92453,107970.0,107960.0,1.03435268]
[1756693384591,0.05881,107970.0,107960.0,1.03435268]
[1756693384787,0.02366,107970.0,107960.0,1.03435268]
[1756693385295,0.02366,107970.0,107960.0,1.04458611]
[1756693385496,0.05881,107970.0,107960.0,1.11999908]
[1756693385797,0.06381,107970.0,107960.0,1.12099908]
[1756693386191,0.05881,107970.0,107960.0,1.11999908]
[1756693386394,0.05981,107970.0,107960.0,1.12299908]
[1756693391790,0.05981,107970.0,107960.0,0.78299908]
[1756693392600,0.58537268,107970.0,107960.0,0.3648]
[1756693393402,1.28735622,107970.0,107960.0,0.004]
[1756693393801,1.28735622,107970.0,107950.0,0.02539098]
[1756693394008,1.56045268,107960.0,107950.0,0.02539098]
[1756693394207,1.83163622,107960.0,107950.0,0.02539098]
[1756693394799,2.18163622,107960.0,107950.0,0.00463]
[1756693395000,2.18163622,107960.0,107950.0,0.00663]
[1756693395197,1.83159622,107960.0,107950.0,0.00863]
[1756693395705,1.83159622,107960.0,107950.0,0.00663]
[1756693395904,2.16259622,107960.0,107950.0,0.00863]
[1756693396400,1.83159622,107960.0,107950.0,0.00763]
[1756693396607,1.83659622,107960.0,107950.0,0.00763]
[1756693396806,0.97135622,107960.0,107950.0,0.00763]
[1756693397002,1.47579622,107960.0,107950.0,0.03108]
[1756693397304,1.47579622,107960.0,107950.0,0.00763]
[1756693397897,1.83659622,107960.0,107950.0,0.00763]
[1756693398299,0.97135622,107960.0,107950.0,0.00763]
[1756693398500,1.83959622,107960.0,107950.0,0.02908]
[1756693399001,1.83959622,107960.0,107950.0,0.00563]
[1756693399409,2.15959622,107960.0,107950.0,0.00563]
[1756693400307,0.05881,107940.0,107930.0,0.39368522]
[1756693400509,0.94519354,107940.0,107930.0,0.39368522]
[1756693400809,0.94519354,107940.0,107930.0,0.42822522]
[1756693401107,0.94519354,107940.0,107930.0,1.0637879]
[1756693401108,0.91004354,107940.0,107930.0,1.0637879]
[1756693401302,0.91004354,107940.0,107930.0,0.7337879]
[1756693401510,0.94622612,107940.0,107930.0,1.0837879]
[1756693401905,0.94622612,107940.0,107930.0,1.3337879]
[1756693401906,0.04587646,107940.0,107930.0,1.3337879]
[1756693402104,0.8682,107940.0,107930.0,1.3347879]
[1756693402410,0.8682,107940.0,107930.0,1.40919161]
[1756693403308,0.90335,107940.0,107930.0,1.40919161]
[1756693403910,0.03815,107940.0,107930.0,1.40919161]
[1756693404204,0.90335,107940.0,107930.0,1.40919161]
[1756693404412,0.86816,107940.0,107930.0,1.40919161]
[1756693404708,0.90331,107940.0,107930.0,1.40919161]
[1756693405508,0.06181,107940.0,107930.0,0.77919161]
[1756693405811,0.92693,107940.0,107930.0,1.11919161]
[1756693406500,0.94814856,107940.0,107930.0,1.11919161]
[1756693406913,0.94814856,107940.0,107930.0,0.79919161]
[1756693407813,0.08302856,107940.0,107930.0,1.15919161]
[1756693408015,0.54570856,107940.0,107930.0,1.15919161]
[1756693408516,0.08302856,107940.0,107930.0,1.15919161]
[1756693408815,0.94810856,107940.0,107930.0,1.15919161]
[1756693409024,0.94810856,107940.0,107930.0,0.88362893]
[1756693409317,0.94810856,107940.0,107930.0,0.50362893]
[1756693409508,0.94810856,107940.0,107930.0,0.77919161]
[1756693413310,0.94810856,107940.0,107930.0,0.7047879]
[1756693415716,0.94798856,107940.0,107930.0,0.7047879]
[1756693416409,0.92677,107940.0,107930.0,0.7047879]
[1756693418816,0.92677,107940.0,107930.0,0.42922522]
[1756693419116,0.92677,107940.0,107930.0,0.7047879]
[1756693421116,0.94804118,107940.0,107930.0,0.7047879]
[1756693422022,0.94792118,107940.0,107930.0,0.7047879]
[1756693422512,0.94792118,107940.0,107930.0,1.0347879]
[1756693423411,0.94792118,107940.0,107930.0,0.7047879]
[1756693423614,0.94792118,107940.0,107930.0,0.7247879]
[1756693424715,0.94792118,107940.0,107930.0,0.7047879]
[1756693425114,0.94792118,107940.0,107930.0,0.39468522]
[1756693425514,1.83428386,107940.0,107930.0,0.001]
[1756693425717,1.8433566,107940.0,107930.0,0.001]
[1756693425916,1.55872118,107940.0,107930.0,0.001]
[1756693426222,1.8838674,107940.0,107930.0,0.001]
[1756693426715,1.95682667,107940.0,107930.0,0.001]
[1756693427222,1.90724313,107940.0,107930.0,0.001]
[1756693428221,1.91657689,107940.0,107930.0,0.001]
[1756693429424,1.90724313,107940.0,107930.0,0.001]
[1756693430720,0.02317,107910.0,107900.0,0.71734849]
[1756693430915,0.92495,107910.0,107900.0,1.06734849]
[1756693431914,0.92495,107910.0,107900.0,1.14306781]
[1756693432314,0.92595,107910.0,107900.0,1.14606781]
[1756693433725,0.92591,107910.0,107900.0,1.14606781]
[1756693434525,0.92591,107910.0,107900.0,1.1551392]
[1756693434919,0.92591,107910.0,107900.0,0.78611139]
[1756693435426,0.94716849,107910.0,107900.0,1.06167407]
[1756693436026,0.94716849,107910.0,107900.0,0.78611139]
[1756693436227,0.94716416,107910.0,107900.0,0.78611139]
[1756693436420,0.92591,107910.0,107900.0,0.78611139]
[1756693437028,0.92591,107910.0,107900.0,0.38810139]
[1756693437429,1.45147268,107910.0,107900.0,0.356]
[1756693437634,2.15351992,107910.0,107900.0,0.046]
[1756693437930,1.83343992,107910.0,107900.0,0.06903]
[1756693438324,1.55787724,107910.0,107900.0,0.06903]
[1756693438621,1.83343992,107910.0,107900.0,0.06903]
[1756693439230,1.58343992,107910.0,107900.0,0.06903]
[1756693440828,1.58343992,107910.0,107900.0,0.046]
[1756693441123,2.46898782,107910.0,107900.0,0.006]
[1756693441820,1.32886514,107910.0,107900.0,0.006]
[1756693442022,2.19342514,107910.0,107900.0,0.006]
[1756693442221,2.19242514,107910.0,107900.0,0.003]
[1756693442420,2.47198782,107910.0,107900.0,0.001]
[1756693442721,0.05932,107890.0,107880.0,0.08083115]
[1756693442924,1.28468,107890.0,107880.0,0.66639383]
[1756693443527,1.28468,107890.0,107880.0,0.40032764]
[1756693443833,1.28468,107890.0,107880.0,0.36321764]
[1756693444130,1.28468,107890.0,107880.0,0.40232764]
[1756693444328,1.28568,107890.0,107880.0,0.40332764]
[1756693444828,0.92492,107890.0,107880.0,0.40332764]
[1756693446519,0.92492,107890.0,107880.0,0.21332764]
[1756693446721,1.28572,107890.0,107880.0,0.09332764]
[1756693447025,1.56128268,107890.0,107880.0,0.09332764]
[1756693447218,1.28572,107890.0,107880.0,0.09332764]
[1756693447720,1.28572,107890.0,107880.0,0.04672115]
[1756693448426,0.69668268,107890.0,107880.0,0.003]
[1756693448731,1.56124268,107890.0,107880.0,0.003]
[1756693448928,0.4423113,107890.0,107880.0,0.003]
[1756693449123,1.58243398,107890.0,107880.0,0.003]
[1756693449629,2.17243398,107890.0,107880.0,0.003]
[1756693449824,1.83243398,107890.0,107880.0,0.003]
[1756693450730,0.96787398,107890.0,107880.0,0.003]
[1756693450930,1.83239398,107890.0,107880.0,0.003]
[1756693452428,0.96787398,107890.0,107880.0,0.003]
[1756693452635,1.83243398,107890.0,107880.0,0.003]
[1756693453037,1.83239398,107890.0,107880.0,0.003]
[1756693453334,0.96787398,107890.0,107880.0,0.003]
[1756693453531,3.79107398,107890.0,107880.0,0.003]
[1756693453736,0.02374,107870.0,107860.0,0.13274676]
[1756693453936,0.92384,107870.0,107860.0,0.49274676]
[1756693454143,0.05932,107870.0,107860.0,0.77761678]
[1756693454346,0.92384,107870.0,107860.0,1.13841678]
[1756693455040,0.92484,107870.0,107860.0,1.14441678]
[1756693455736,0.9248,107870.0,107860.0,1.14441678]
[1756693456239,0.06032,107870.0,107860.0,1.14441678]
[1756693456439,0.86548,107870.0,107860.0,1.39441678]
[1756693456744,0.001,107870.0,107860.0,1.39441678]
[1756693456945,0.86548,107870.0,107860.0,1.39441678]
[1756693458341,0.90106,107870.0,107860.0,1.39441678]
[1756693458743,0.9248,107870.0,107860.0,1.07170002]
[1756693458947,0.94599759,107870.0,107860.0,1.07170002]
[1756693459949,0.94595759,107870.0,107860.0,1.07170002]
[1756693461450,0.94595759,107870.0,107860.0,0.43533734]
[1756693462851,0.9459729,107870.0,107860.0,0.43533734]
[1756693463047,0.9459729,107870.0,107860.0,0.39822734]
[1756693463246,1.96233558,107870.0,107860.0,0.366]
[1756693463450,1.58233558,107870.0,107860.0,0.366]
[1756693463650,1.58233558,107870.0,107860.0,0.38892]
[1756693464353,0.71789558,107870.0,107860.0,0.38592]
[1756693464554,1.58229558,107870.0,107860.0,0.38692]
[1756693464954,1.3067329,107870.0,107860.0,0.38492]
[1756693465248,1.58229558,107870.0,107860.0,0.38492]
[1756693466052,0.71789558,107870.0,107860.0,0.38492]
[1756693466249,1.58225558,107870.0,107860.0,0.38492]
[1756693466847,2.28225558,107870.0,107860.0,0.38492]
[1756693467249,2.28225558,107870.0,107860.0,0.42203]
[1756693467855,2.28225558,107870.0,107860.0,0.38492]
[1756693468051,2.28225558,107870.0,107860.0,0.362]
[1756693468252,2.28225558,107870.0,107860.0,0.002]
[1756693468452,2.28225558,107870.0,107860.0,0.02492]
[1756693469455,2.28225558,107870.0,107860.0,0.002]
[1756693470755,2.59225558,107870.0,107860.0,0.002]
[1756693471652,2.28225558,107870.0,107860.0,0.002]
[1756693471854,2.1813903,107870.0,107840.0,0.02023541]
[1756693472050,0.33410268,107850.0,107840.0,0.36477541]
[1756693472256,1.21955558,107850.0,107840.0,0.36477541]
[1756693472558,1.21955558,107850.0,107840.0,0.39984541]
[1756693472961,1.21955558,107850.0,107840.0,0.40284541]
[1756693473151,0.9439929,107850.0,107840.0,0.40284541]
[1756693473351,0.9439929,107850.0,107840.0,0.76364541]
[1756693473551,0.0797529,107850.0,107840.0,0.76364541]
[1756693473762,0.9439529,107850.0,107840.0,0.76064541]
[1756693474258,0.9439529,107850.0,107840.0,0.72557541]
[1756693474449,1.21951558,107850.0,107840.0,0.36477541]
[1756693474655,1.21951558,107850.0,107840.0,0.36777541]
[1756693474861,1.58031558,107850.0,107840.0,0.36777541]
[1756693475053,1.58031558,107850.0,107840.0,0.02323541]
[1756693475249,1.58131558,107850.0,107840.0,0.02586541]
[1756693475661,1.58131558,107850.0,107840.0,0.00563]
[1756693475967,1.60131558,107850.0,107840.0,0.00563]
[1756693476551,1.60127558,107850.0,107840.0,0.00563]
[1756693476957,1.3057129,107850.0,107840.0,0.10017]
[1756693477171,1.58127558,107850.0,107840.0,0.10017]
[1756693477460,1.58127558,107850.0,107840.0,0.00563]
[1756693477856,2.21127558,107850.0,107840.0,0.00563]
[1756693478464,1.83127558,107850.0,107840.0,0.00563]
[1756693478766,0.96711558,107850.0,107840.0,0.00563]
[1756693479063,1.83127558,107850.0,107840.0,0.00563]
[1756693479267,0.6915529,107850.0,107840.0,0.03017]
[1756693479455,1.83123558,107850.0,107840.0,0.03017]